bitfinex-derivatives/quotes_SOLF0:USTF0_20250907
["timestamp","ask_amount","ask_price","bid_price","bid_amount"]
[1757203201134,7.71,200.34,200.25,8.17]
[1757203201431,7.71,200.34,200.27,8.17]
[1757203201624,7.71,200.34,200.28,4.79492089]
[1757203201823,5.59104438,200.36,200.29,4.79492089]
[1757203202026,5.59104438,200.37,200.3,4.79492089]
[1757203202232,5.59104438,200.37,200.31,4.79492089]
[1757203202432,5.59104438,200.38,200.32,4.79492089]
[1757203202634,5.59104438,200.38,200.33,4.79492089]
[1757203202927,7.71,200.37,200.34,4.79520608]
[1757203203126,7.71,200.39,200.35,4.79520608]
[1757203203333,7.71,200.39,200.33,8.17]
[1757203203524,7.71,200.39,200.34,4.79350886]
[1757203203734,7.71,200.39,200.35,4.79350886]
[1757203204031,7.71,200.39,200.33,8.17]
[1757203204226,7.71,200.39,200.34,4.79234085]
[1757203204423,7.71,200.39,200.33,8.17]
[1757203204631,7.71,200.39,200.34,4.79255986]
[1757203204831,7.71,200.39,200.33,8.17]
[1757203205028,7.71,200.39,200.34,4.79255986]
[1757203205234,5.59104438,200.38,200.29,8.17]
[1757203205430,7.71,200.37,200.3,4.79217932]
[1757203205630,7.71,200.37,200.31,4.79217932]
[1757203205831,7.71,200.37,200.32,4.79217932]
[1757203206034,13.30104438,200.37,200.3,8.17]
[1757203206233,7.71,200.37,200.31,4.79217837]
[1757203206431,128.86656657,200.4,200.3,8.17]
[1757203206432,7.71,200.35,200.3,8.17]
[1757203206938,5.59104438,200.36,200.3,8.17]
[1757203207233,7.71,200.35,200.3,8.17]
[1757203207629,5.59104438,200.36,200.31,4.79246691]
[1757203207829,5.59104438,200.36,200.23,17.72126663]
[1757203208029,7.71,200.35,200.25,8.17]
[1757203208229,7.71,200.35,200.27,8.17]
[1757203208428,7.71,200.35,200.29,8.17]
[1757203208633,7.71,200.35,200.3,4.79244577]
[1757203208832,7.71,200.36,200.31,12.96244577]
[1757203209028,7.71,200.36,200.31,8.17]
[1757203209428,13.30104438,200.36,200.31,8.17]
[1757203209631,7.71,200.36,200.32,4.79240205]
[1757203209831,7.71,200.36,200.28,8.17]
[1757203210032,7.71,200.36,200.29,4.79214634]
[1757203210236,7.71,200.36,200.3,4.79214634]
[1757203210438,5.59104438,200.33,200.31,4.79214634]
[1757203210739,7.71,200.32,200.23,8.17]
[1757203210942,5.59104438,200.33,200.25,8.17]
[1757203211135,5.59104438,200.33,200.27,8.17]
[1757203211338,5.59104438,200.34,200.29,8.17]
[1757203211537,5.59104438,200.34,200.3,4.79225387]
[1757203211739,5.59104438,200.34,200.29,8.17]
[1757203211942,5.59104438,200.34,200.31,8.17]
[1757203212238,5.59104438,200.34,200.22,8.17]
[1757203212438,5.59104438,200.34,200.24,8.17]
[1757203212636,5.59104438,200.34,200.26,8.17]
[1757203212842,5.59104438,200.34,200.27,4.79213955]
[1757203213046,5.59104438,200.34,200.29,8.17]
[1757203213246,5.59104438,200.34,200.3,4.79213955]
[1757203213442,5.59104438,200.35,200.32,8.17]
[1757203213647,5.59104438,200.36,200.24,8.17]
[1757203213847,5.59104438,200.36,200.25,4.79173734]
[1757203214052,5.59104438,200.36,200.27,8.17]
[1757203214251,5.59104438,200.33,200.28,4.79173734]
[1757203214546,5.59104438,200.33,200.3,8.17]
[1757203214746,5.59104438,200.33,200.31,4.79173734]
[1757203214947,5.59104438,200.33,200.32,12.96173734]
[1757203215848,5.59104438,200.35,200.32,8.17]
[1757203216049,7.71,200.34,200.32,8.17]
[1757203216449,5.59104438,200.35,200.27,4.4923]
[1757203216751,5.59104438,200.36,200.29,8.17]
[1757203216951,13.30104438,200.36,200.31,8.17]
[1757203217142,13.30104438,200.36,200.33,8.17]
[1757203217345,13.30104438,200.36,200.29,8.17]
[1757203217651,13.30104438,200.36,200.31,8.17]
[1757203217948,13.30104438,200.36,200.29,8.17]
[1757203218150,13.30104438,200.36,200.31,8.17]
[1757203218349,13.30104438,200.36,200.33,8.17]
[1757203218552,13.30104438,200.36,200.29,8.17]
[1757203218747,13.30104438,200.36,200.3,4.77271328]
[1757203218948,13.30104438,200.36,200.28,4.4921]
[1757203218949,13.30104438,200.36,200.31,4.77271328]
[1757203219247,13.30104438,200.36,200.33,8.11]
[1757203220246,7.71,200.36,200.28,4.4921]
[1757203220550,7.71,200.36,200.3,8.11]
[1757203220741,7.71,200.36,200.31,4.77183619]
[1757203220942,7.71,200.36,200.33,8.11]
[1757203223051,14.99,200.44,200.34,4.77034711]
[1757203223052,13.11104438,200.41,200.34,4.77034711]
[1757203223255,7.52,200.41,200.35,4.77034711]
[1757203223454,7.52,200.41,200.29,69.8761]
[1757203223652,7.52,200.41,200.31,8.11]
[1757203223951,7.52,200.42,200.33,8.11]
[1757203224154,8.38656657,200.45,200.34,9.49752049]
[1757203224353,8.38656657,200.45,200.35,9.49752049]
[1757203224555,7.52,200.44,200.36,4.72940036]
[1757203224754,7.52,200.44,200.37,4.72940036]
[1757203224955,7.52,200.44,200.38,4.72940036]
[1757203225154,7.52,200.44,200.33,8.11]
[1757203225358,7.52,200.44,200.35,8.11]
[1757203225560,7.52,200.44,200.36,4.72664897]
[1757203225749,7.52,200.44,200.37,4.72664897]
[1757203225953,7.52,200.44,200.38,4.72664897]
[1757203226252,7.52,200.44,200.35,8.11]
[1757203226459,7.52,200.44,200.36,4.72555814]
[1757203226658,7.52,200.44,200.37,4.72555814]
[1757203226860,7.52,200.44,200.38,4.72555814]
[1757203227060,7.52,200.44,200.35,8.11]
[1757203227359,7.52,200.44,200.36,4.72555814]
[1757203227559,7.52,200.44,200.37,4.72555814]
[1757203227758,7.52,200.44,200.38,4.72555814]
[1757203227954,7.52,200.44,200.35,8.11]
[1757203228149,7.52,200.44,200.36,4.72460792]
[1757203228357,7.52,200.44,200.37,4.72460792]
[1757203228550,7.52,200.44,200.38,4.72460792]
[1757203228755,7.52,200.44,200.37,8.11]
[1757203228957,7.52,200.44,200.38,4.72375979]
[1757203229160,7.52,200.44,200.37,8.11]
[1757203229356,7.52,200.44,200.38,4.72302437]
[1757203229558,7.52,200.44,200.37,8.11]
[1757203229859,7.52,200.44,200.38,4.72291724]
[1757203230056,464.64656657,200.47,200.4,8.11]
[1757203230358,7.52,200.46,200.4,8.11]
[1757203237766,7.52,200.46,200.35,8.11]
[1757203237961,335.62,200.47,200.36,9.41378602]
[1757203238168,7.52,200.46,200.37,12.76887383]
[1757203238367,7.52,200.46,200.38,4.65887383]
[1757203238567,7.52,200.46,200.37,8.11]
[1757203238763,7.52,200.46,200.38,4.65843676]
[1757203239067,7.52,200.46,200.37,8.11]
[1757203242268,7.52,200.46,200.39,8.11]
[1757203242572,7.52,200.47,200.41,8.11]
[1757203245374,24.3,200.49,200.42,4.65878834]
[1757203245574,7.52,200.46,200.43,8.11]
[1757203246475,7.52,200.48,200.39,8.11]
[1757203246676,7.52,200.48,200.4,4.65850233]
[1757203246871,7.52,200.48,200.41,4.65850233]
[1757203247072,7.52,200.48,200.39,8.11]
[1757203247275,7.52,200.48,200.4,4.65832172]
[1757203247571,7.52,200.48,200.41,4.65832172]
[1757203247771,7.52,200.48,200.4,8.11]
[1757203248068,7.52,200.48,200.41,4.65832175]
[1757203248270,7.52,200.48,200.4,8.11]
[1757203256383,15.90656657,200.48,200.4,8.11]
[1757203256584,7.52,200.48,200.4,8.11]
[1757203258186,15.90656657,200.48,200.4,8.11]
[1757203258691,15.90656657,200.48,200.34,7.68]
[1757203258888,7.9,200.46,200.36,7.68]
[1757203259094,7.9,200.46,200.38,7.68]
[1757203260187,7.9,200.46,200.39,4.67042364]
[1757203260391,7.9,200.46,200.38,7.68]
[1757203260687,16.28656657,200.46,200.38,7.68]
[1757203260885,7.9,200.44,200.3,7.68]
[1757203261091,7.9,200.44,200.32,7.68]
[1757203261290,7.9,200.44,200.34,7.68]
[1757203261490,7.9,200.44,200.35,4.67076143]
[1757203261690,7.9,200.44,200.37,7.68]
[1757203263396,16.28656657,200.44,200.37,7.68]
[1757203264193,16.28656657,200.44,200.38,4.67492409]
[1757203264396,8.38656657,200.43,200.37,7.68]
[1757203264594,7.9,200.42,200.37,7.68]
[1757203264795,7.9,200.43,200.27,7.68]
[1757203264993,7.9,200.4,200.29,7.68]
[1757203265196,8.7689898,200.4,200.31,7.68]
[1757203265397,8.7689898,200.4,200.33,7.68]
[1757203265697,8.7689898,200.4,200.34,4.6752349]
[1757203265887,7.9,200.39,200.35,12.3552349]
[1757203266090,7.9,200.39,200.35,7.68]
[1757203266288,0.8689898,200.4,200.35,7.68]
[1757203266492,7.9,200.39,200.35,7.68]
[1757203266693,0.8689898,200.4,200.36,4.67589408]
[1757203266896,7.9,200.39,200.35,7.68]
[1757203267193,7.9,200.39,200.36,4.67589408]
[1757203267396,7.9,200.39,200.27,7.68]
[1757203267596,7.9,200.39,200.29,7.68]
[1757203267797,7.9,200.39,200.31,7.68]
[1757203267992,7.9,200.39,200.32,9.44834808]
[1757203268195,7.9,200.39,200.33,17.12834808]
[1757203268393,0.8689898,200.4,200.34,4.6763854]
[1757203268592,0.8689898,200.4,200.35,12.3563854]
[1757203268792,7.9,200.39,200.36,4.6763854]
[1757203268997,7.9,200.39,200.36,7.68]
[1757203269195,0.8689898,200.4,200.36,7.68]
[1757203269589,7.9,200.39,200.36,7.68]
[1757203269797,0.8689898,200.4,200.36,7.68]
[1757203270198,7.9,200.39,200.36,7.68]
[1757203270400,0.8689898,200.4,200.36,7.68]
[1757203270892,7.9,200.39,200.36,7.68]
[1757203271793,0.8689898,200.4,200.36,7.68]
[1757203271999,7.9,200.39,200.29,7.68]
[1757203272201,7.9,200.39,200.31,7.68]
[1757203272400,7.9,200.39,200.33,7.68]
[1757203272601,7.9,200.39,200.34,4.67437122]
[1757203272802,7.9,200.39,200.35,12.35437122]
[1757203273102,0.8689898,200.4,200.26,120.63257235]
[1757203273297,7.9,200.39,200.28,7.68]
[1757203273499,7.9,200.39,200.3,7.68]
[1757203273698,7.9,200.39,200.32,7.68]
[1757203273901,7.9,200.39,200.33,4.67372012]
[1757203274098,7.9,200.39,200.32,7.68]
[1757203274099,7.9,200.39,200.3,7.68]
[1757203274302,7.9,200.39,200.31,4.67262784]
[1757203274496,7.9,200.39,200.3,7.68]
[1757203275506,7.9,200.39,200.27,7.68]
[1757203275703,16.28656657,200.39,200.28,9.31873053]
[1757203276003,16.28656657,200.39,200.29,4.5518818]
[1757203276205,16.28656657,200.39,200.27,7.68]
[1757203276406,16.28656657,200.39,200.28,9.31597041]
[1757203276605,7.9,200.39,200.29,4.5505322]
[1757203276917,24.24555637,200.4,200.27,7.68]
[1757203276918,16.28656657,200.37,200.27,7.68]
[1757203277312,7.9,200.37,200.27,7.68]
[1757203277701,23.37656657,200.38,200.18,340.0945]
[1757203277702,7.9,200.35,200.18,340.0945]
[1757203277904,7.9,200.35,200.2,7.68]
[1757203278113,7.9,200.35,200.22,7.68]
[1757203278307,7.9,200.35,200.24,7.68]
[1757203278613,7.9,200.35,200.25,4.54871562]
[1757203278914,7.9,200.35,200.24,7.68]
[1757203279106,7.9,200.35,200.25,4.54665557]
[1757203279303,7.9,200.35,200.24,7.68]
[1757203279509,7.9,200.35,200.25,4.54479063]
[1757203279813,7.9,200.35,200.24,7.68]
[1757203280009,7.9,200.35,200.25,4.54479063]
[1757203280212,7.9,200.35,200.24,7.68]
[1757203280408,7.9,200.35,200.25,4.54315983]
[1757203280608,7.9,200.35,200.24,7.68]
[1757203285113,36.36,200.34,200.24,7.68]
[1757203285316,7.71,200.33,200.24,7.68]
[1757203286013,7.71,200.38,200.25,9.29033348]
[1757203286312,7.71,200.38,200.27,12.0123]
[1757203286617,7.71,200.38,200.28,7.52]
[1757203288216,7.71,200.36,200.28,7.52]
[1757203288414,49.83,200.36,200.28,7.52]
[1757203290612,64.82,200.36,200.28,7.52]
[1757203303223,64.82,200.36,200.29,4.55245164]
[1757203303425,64.82,200.36,200.28,7.52]
[1757203303722,64.82,200.36,200.29,4.55245164]
[1757203303925,64.82,200.36,200.28,7.52]
[1757203304220,64.82,200.36,200.29,4.55245164]
[1757203304421,64.82,200.36,200.28,7.52]
[1757203304627,64.82,200.36,200.29,4.55380521]
[1757203304925,64.82,200.36,200.28,7.52]
[1757203305125,64.82,200.36,200.29,4.55380517]
[1757203305327,64.82,200.36,200.28,7.52]
[1757203306125,73.15468199,200.36,200.22,7.52]
[1757203306325,7.71,200.33,200.24,7.52]
[1757203306522,7.71,200.33,200.25,4.55440145]
[1757203306722,22.7,200.33,200.26,4.55440145]
[1757203306924,22.7,200.33,200.24,7.52]
[1757203307125,22.7,200.33,200.25,4.55509522]
[1757203307326,22.7,200.33,200.26,4.55509522]
[1757203307626,22.7,200.33,200.24,7.52]
[1757203307825,22.7,200.33,200.25,4.55564846]
[1757203308026,22.7,200.33,200.26,4.55564846]
[1757203308325,22.7,200.33,200.24,7.52]
[1757203308528,22.7,200.33,200.25,4.55634747]
[1757203308722,22.7,200.33,200.24,7.52]
[1757203309025,22.7,200.33,200.26,7.49]
[1757203309222,22.7,200.33,200.27,4.55644786]
[1757203309430,7.86,200.34,200.22,7.49]
[1757203309624,7.86,200.34,200.24,7.49]
[1757203309830,7.86,200.34,200.26,7.49]
[1757203310129,7.86,200.34,200.28,7.49]
[1757203310329,7.86,200.34,200.29,4.55736412]
[1757203310523,7.86,200.37,200.31,7.49]
[1757203312429,7.86,200.36,200.22,7.49]
[1757203312624,14.99,200.35,200.24,7.49]
[1757203312828,7.86,200.34,200.26,7.49]
[1757203313022,7.86,200.34,200.27,9.33541033]
[1757203313223,7.86,200.34,200.28,9.33541033]
[1757203313424,14.99,200.35,200.29,4.56421202]
[1757203313624,7.86,200.34,200.26,7.49]
[1757203313824,7.86,200.34,200.27,9.33709654]
[1757203314027,22.85,200.34,200.28,4.56503643]
[1757203314222,14.99,200.34,200.29,4.56503643]
[1757203314427,7.86,200.33,200.3,4.56593081]
[1757203314626,144.01,200.34,200.26,7.49]
[1757203314828,144.01,200.34,200.27,9.21930322]
[1757203315126,144.01,200.34,200.28,9.21930322]
[1757203315326,7.86,200.33,200.29,4.44630817]
[1757203315525,7.86,200.33,200.27,7.49]
[1757203315725,136.15,200.34,200.28,9.22138492]
[1757203316029,136.15,200.34,200.29,4.44731214]
[1757203316229,7.86,200.33,200.27,7.49]
[1757203316429,136.15,200.34,200.28,9.19781627]
[1757203316732,136.15,200.34,200.29,4.44845133]
[1757203316934,7.86,200.33,200.26,7.49]
[1757203317133,7.86,200.33,200.27,9.19781627]
[1757203317327,136.15,200.34,200.28,9.19781627]
[1757203317522,7.86,200.33,200.29,4.44845133]
[1757203317726,7.86,200.33,200.27,7.49]
[1757203317928,7.86,200.33,200.28,9.20018583]
[1757203318132,136.15,200.34,200.29,4.44959735]
[1757203318430,7.86,200.33,200.27,7.49]
[1757203318631,136.15,200.34,200.28,9.20295699]
[1757203318830,7.86,200.33,200.29,9.20295699]
[1757203319031,7.86,200.33,200.27,7.49]
[1757203319230,136.15,200.34,200.28,9.20295699]
[1757203319431,136.15,200.34,200.29,9.20295699]
[1757203319633,7.86,200.33,200.27,7.49]
[1757203319833,136.15,200.34,200.28,9.20405816]
[1757203320133,7.86,200.33,200.29,9.20405816]
[1757203320334,136.15,200.34,200.26,7.49]
[1757203320534,7.86,200.33,200.27,9.20460389]
[1757203320836,136.15,200.34,200.28,9.20460389]
[1757203321133,7.86,200.33,200.29,9.20472826]
[1757203321335,7.86,200.33,200.26,7.49]
[1757203321528,7.86,200.33,200.27,9.20497862]
[1757203321728,7.86,200.33,200.28,4.45191534]
[1757203321925,7.86,200.33,200.26,7.49]
[1757203322127,7.86,200.33,200.27,4.4520956]
[1757203322331,16.19468199,200.33,200.26,7.49]
[1757203322531,31.18468199,200.33,200.27,4.45226143]
[1757203322732,14.99,200.31,200.23,7.49]
[1757203323036,7.86,200.3,200.24,9.02848651]
[1757203323340,7.86,200.3,200.25,4.45248058]
[1757203323540,7.86,200.3,200.23,7.49]
[1757203323741,7.86,200.3,200.24,9.02728093]
[1757203323941,14.99,200.31,200.25,4.45188723]
[1757203324241,7.86,200.29,200.23,7.49]
[1757203325040,7.86,200.29,200.24,4.45139354]
[1757203325241,7.86,200.3,200.25,4.45139354]
[1757203325441,7.86,200.3,200.23,7.49]
[1757203325739,7.86,200.3,200.24,4.45093343]
[1757203325940,7.86,200.3,200.23,7.49]
[1757203325941,14.99,200.31,200.25,4.45093343]
[1757203326130,7.86,200.3,200.23,7.49]
[1757203326331,7.86,200.3,200.24,4.45060403]
[1757203326534,7.86,200.3,200.25,4.45060403]
[1757203326738,7.86,200.3,200.23,7.49]
[1757203326941,7.86,200.3,200.24,4.45060403]
[1757203327235,7.86,200.3,200.25,4.45060403]
[1757203327433,7.86,200.3,200.23,7.49]
[1757203327640,7.86,200.3,200.24,4.45039619]
[1757203327842,7.86,200.29,200.25,4.45039619]
[1757203328045,22.85,200.31,200.23,7.49]
[1757203328246,22.85,200.31,200.24,4.45027138]
[1757203328438,22.85,200.31,200.25,4.45027138]
[1757203328632,22.85,200.31,200.23,7.49]
[1757203328842,121.14,200.3,200.24,4.45029079]
[1757203329145,121.14,200.3,200.25,11.94029079]
[1757203329340,7.86,200.29,200.25,7.49]
[1757203331749,121.14,200.3,200.25,7.49]
[1757203332544,7.86,200.29,200.17,4.4946]
[1757203332750,7.86,200.29,200.19,7.49]
[1757203332948,7.86,200.29,200.21,7.49]
[1757203333138,7.86,200.29,200.22,4.44941374]
[1757203333342,7.86,200.29,200.21,7.49]
[1757203333343,7.86,200.29,200.23,11.93941374]
[1757203333542,7.86,200.29,200.24,4.44941374]
[1757203333747,7.86,200.29,200.22,7.49]
[1757203333942,7.86,200.29,200.23,4.44908688]
[1757203334146,7.86,200.29,200.22,7.49]
[1757203334147,7.86,200.29,200.24,4.44908688]
[1757203334344,7.86,200.29,200.22,7.49]
[1757203334643,7.86,200.29,200.23,4.44868626]
[1757203334848,7.86,200.29,200.24,4.44868626]
[1757203335049,7.86,200.29,200.23,7.49]
[1757203335251,7.86,200.29,200.24,4.44832698]
[1757203335447,7.86,200.29,200.18,7.49]
[1757203335648,7.86,200.29,200.2,7.49]
[1757203335947,7.86,200.29,200.22,7.49]
[1757203336150,7.86,200.29,200.23,4.44832698]
[1757203336351,121.14,200.3,200.24,4.44832698]
[1757203336648,7.86,200.29,200.19,7.49]
[1757203336953,7.86,200.29,200.21,7.49]
[1757203337150,7.86,200.29,200.23,7.49]
[1757203337345,7.86,200.29,200.24,4.44812594]
[1757203337640,7.86,200.29,200.23,7.49]
[1757203337840,121.06,200.29,200.24,4.44796815]
[1757203338052,128.92,200.29,200.23,7.49]
[1757203338352,121.06,200.29,200.24,11.93777583]
[1757203338544,7.86,200.28,200.24,7.49]
[1757203338944,8.04,200.28,200.24,7.49]
[1757203339151,121.06,200.29,200.24,7.49]
[1757203339548,8.04,200.28,200.24,7.49]
[1757203339750,121.06,200.29,200.24,7.49]
[1757203340142,8.04,200.28,200.24,7.49]
[1757203340346,121.06,200.29,200.24,7.49]
[1757203340547,8.04,200.28,200.24,7.49]
[1757203340747,14.99,200.31,200.24,7.49]
[1757203340952,129.08,200.3,200.24,7.49]
[1757203342352,8.04,200.3,200.24,7.49]
[1757203342653,129.06,200.29,200.21,8.03]
[1757203342851,129.06,200.29,200.23,8.03]
[1757203343052,8.04,200.28,200.24,12.47201958]
[1757203343351,8.04,200.28,200.24,8.03]
[1757203343945,121.02,200.29,200.24,8.03]
[1757203344352,8.04,200.28,200.24,8.03]
[1757203344552,8.04,200.28,200.2,4.4939]
[1757203344755,8.04,200.28,200.22,8.03]
[1757203345051,121.02,200.29,200.23,4.44209425]
[1757203345246,8.04,200.28,200.24,12.47209425]
[1757203345454,8.04,200.28,200.24,8.03]
[1757203345851,8.04,200.3,200.25,4.44215195]
[1757203346151,120.98,200.31,200.26,4.44215195]
[1757203346348,129.02,200.31,200.24,8.03]
[1757203346550,129.02,200.31,200.26,8.03]
[1757203346748,129.02,200.31,200.24,8.03]
[1757203346951,129.02,200.31,200.23,4.4932]
[1757203346952,120.98,200.31,200.25,4.44211279]
[1757203347152,8.04,200.3,200.27,8.03]
[1757203347349,8.04,200.3,200.23,4.4932]
[1757203347543,8.04,200.3,200.24,8.91973792]
[1757203347745,8.04,200.3,200.25,4.44232781]
[1757203347953,8.04,200.3,200.26,4.44232781]
[1757203348148,8.04,200.3,200.27,4.44242629]
[1757203348354,8.04,200.33,200.25,8.03]
[1757203348653,8.04,200.33,200.27,8.03]
[1757203348854,8.04,200.34,200.28,12.47238754]
[1757203349054,8.04,200.34,200.28,8.03]
[1757203349253,121.04,200.35,200.29,4.44214137]
[1757203349454,8.04,200.34,200.28,8.03]
[1757203349759,8.04,200.36,200.29,12.47232369]
[1757203349955,8.04,200.34,200.26,8.03]
[1757203350259,8.04,200.34,200.28,8.03]
[1757203350459,121.08,200.35,200.29,4.44220341]
[1757203350656,8.04,200.34,200.3,12.47220341]
[1757203350858,121.06,200.34,200.3,8.03]
[1757203351157,8.04,200.33,200.3,8.03]
[1757203351748,121.06,200.34,200.3,8.03]
[1757203351951,8.04,200.33,200.3,8.03]
[1757203352153,121.06,200.34,200.3,8.03]
[1757203352353,8.04,200.33,200.3,8.03]
[1757203352558,121.04,200.34,200.3,8.03]
[1757203353457,8.04,200.36,200.3,8.03]
[1757203353657,121.04,200.35,200.3,8.03]
[1757203355056,8.04,200.34,200.3,8.03]
[1757203355262,121.04,200.35,200.3,8.03]
[1757203355561,8.04,200.34,200.3,8.03]
[1757203356261,121.04,200.35,200.3,8.03]
[1757203356858,8.04,200.34,200.3,8.03]
[1757203357361,121.04,200.35,200.3,8.03]
[1757203358362,8.04,200.34,200.3,8.03]
[1757203358556,121.04,200.35,200.3,8.03]
[1757203358959,8.04,200.34,200.3,8.03]
[1757203359260,23.32468199,200.38,200.3,8.03]
[1757203359456,143.99,200.37,200.3,8.03]
[1757203362468,23.03,200.37,200.3,8.03]
[1757203362668,120.94,200.36,200.3,8.03]
[1757203363072,8.04,200.35,200.3,8.03]
[1757203363269,120.94,200.36,200.3,8.03]
[1757203363972,8.04,200.35,200.3,8.03]
[1757203364667,120.94,200.36,200.3,8.03]
[1757203364868,8.04,200.35,200.3,8.03]
[1757203365260,120.94,200.36,200.3,8.03]
[1757203365462,120.92,200.35,200.3,8.03]
[1757203365863,8.04,200.34,200.3,8.03]
[1757203366266,120.92,200.35,200.3,8.03]
[1757203366570,8.04,200.34,200.3,8.03]
[1757203367373,120.92,200.35,200.3,8.03]
[1757203367571,8.04,200.34,200.3,8.03]
[1757203367971,120.92,200.35,200.3,8.03]
[1757203368472,14.99,200.39,200.3,8.03]
[1757203368672,8.04,200.33,200.3,8.03]
[1757203371477,7.91,200.38,200.31,4.43588329]
[1757203371667,7.91,200.38,200.33,7.49]
[1757203371874,7.91,200.38,200.34,4.43186466]
[1757203372177,7.91,200.38,200.29,7.49]
[1757203372373,7.91,200.38,200.31,7.49]
[1757203372577,7.91,200.38,200.33,7.49]
[1757203372877,7.91,200.38,200.34,4.43074222]
[1757203373073,8.33468199,200.44,200.35,69.855]
[1757203373267,7.91,200.45,200.37,7.49]
[1757203373468,0.86871864,200.47,200.39,7.49]
[1757203373668,0.86871864,200.47,200.41,7.49]
[1757203373869,0.86871864,200.47,200.4,8.89596463]
[1757203373870,53.02,200.5,200.43,7.49]
[1757203374074,53.88856686,200.5,200.43,7.49]
[1757203374976,53.88856686,200.5,200.43,11.9787]
[1757203376372,0.86856686,200.5,200.44,7.49]
[1757203379681,7.91,200.49,200.44,7.49]
[1757203379883,7.91,200.49,200.37,7.49]
[1757203380083,7.91,200.49,200.39,7.49]
[1757203389897,22.9,200.49,200.34,7.49]
[1757203390085,22.9,200.49,200.35,4.400879]
[1757203390289,22.9,200.49,200.36,7.49]
[1757203392294,7.91,200.49,200.36,7.49]
[1757203392895,7.91,200.49,200.38,7.49]
[1757203396286,7.91,200.49,200.39,4.40386356]
[1757203396489,7.91,200.49,200.4,7.49]
[1757203401000,7.91,200.49,200.41,4.40468273]
[1757203401202,7.91,200.49,200.42,7.93]
[1757203414908,7.91,200.49,200.43,4.39862809]
[1757203415107,7.91,200.49,200.42,7.93]
[1757203415306,8.98856686,200.5,200.44,7.93]
[1757203417508,8.98856686,200.5,200.46,7.93]
[1757203417708,8.98856686,200.5,200.44,7.93]
[1757203417897,8.98856686,200.5,200.46,7.93]
[1757203418102,8.98856686,200.5,200.44,7.93]
[1757203418302,8.98856686,200.5,200.45,4.41170739]
[1757203418501,8.98856686,200.5,200.47,7.93]
[1757203419509,8.12,200.49,200.47,7.93]
[1757203419805,8.12,200.49,200.43,7.93]
[1757203420007,0.86856686,200.5,200.44,8.89083069]
[1757203420210,8.12,200.49,200.45,12.34145792]
[1757203420405,0.86856686,200.5,200.46,4.41145792]
[1757203420609,8.12,200.49,200.42,7.93]
[1757203420809,8.12,200.49,200.43,4.41148399]
[1757203421004,8.12,200.49,200.44,4.41148399]
[1757203421204,8.12,200.49,200.42,7.93]
[1757203421509,8.12,200.49,200.43,4.41180414]